fUST/lending_fUST_20250511
["ID","MTS","AMOUNT","RATE_DAILY","PERIOD"]
[360621988,1746906661445,-1142.12,9.315e-05,2]
[360621989,1746906661454,-400.0,9.315e-05,2]
[360621990,1746906661464,-1235.06,9.315e-05,2]
[360621991,1746906661473,-400.0,9.315e-05,2]
[360621992,1746906661483,-400.0,9.315e-05,2]
[360621993,1746906661492,-4110.99,9.315e-05,2]
[360621994,1746906661502,-512.06,9.315e-05,2]
[360621995,1746906661512,-408.04,9.315e-05,2]
[360621996,1746906661521,-400.0,9.315e-05,2]
[360621997,1746906661531,-866.6,9.315e-05,2]
[360621998,1746906661540,-1197.32,9.315e-05,2]
[360621999,1746906661551,-4277.51,9.315e-05,2]
[360622000,1746906661560,-400.0,9.315e-05,2]
[360622001,1746906661570,-400.0,9.315e-05,2]
[360622002,1746906661579,-852.33,9.315e-05,2]
[360622003,1746906661589,-400.0,9.315e-05,2]
[360622004,1746906661599,-1309.03,9.315e-05,2]
[360622005,1746906661608,-1077.29,9.315e-05,2]
[360622006,1746906661617,-7785.86,9.315e-05,2]
[360622007,1746906661628,-400.0,9.315e-05,2]
[360622008,1746906661638,-798.74,9.315e-05,2]
[360622009,1746906661647,-400.0,9.315e-05,2]
[360622010,1746906661657,-2347.64,9.315e-05,2]
[360622011,1746906661667,-722.49,9.315e-05,2]
[360622012,1746906661676,-504.58988077,9.315e-05,2]
[360622013,1746906661685,-400.0,9.315e-05,2]
[360622014,1746906661695,-400.0,9.315e-05,2]
[360622015,1746906661704,-400.0,9.315e-05,2]
[360622016,1746906661716,-1540.79,9.315e-05,2]
[360622017,1746906661726,-415.52,9.315e-05,2]
[360622018,1746906661736,-1202.77,9.315e-05,2]
[360622019,1746906661746,-8125.42,9.315e-05,2]
[360622020,1746906661755,-455.9,9.315e-05,2]
[360622021,1746906661765,-728.41,9.315e-05,2]
[360622022,1746906661776,-4052.84,9.315e-05,2]
[360622023,1746906661787,-1722.78,9.315e-05,2]
[360622024,1746906661798,-400.0,9.315e-05,2]
[360622025,1746906661809,-400.0,9.315e-05,2]
[360622026,1746906661819,-961.45,9.315e-05,2]
[360622027,1746906661829,-400.0,9.315e-05,2]
[360622028,1746906661840,-400.0,9.315e-05,2]
[360622029,1746906661850,-513.69,9.315e-05,2]
[360622030,1746906661859,-206.73960283,9.315e-05,2]
[360622031,1746906661869,-499.05357999,9.315e-05,2]
[360622032,1746906661878,-1620.11,9.315e-05,2]
[360622033,1746906661888,-1522.1,9.315e-05,2]
[360622034,1746906661898,-855.77,9.315e-05,2]
[360622035,1746906661907,-3617.99,9.315e-05,2]
[360622036,1746906661917,-400.0,9.315e-05,2]
[360622037,1746906661927,-1039.2,9.315e-05,2]
[360622038,1746906661937,-1521.55,9.315e-05,2]
[360622039,1746906661947,-400.0,9.315e-05,2]
[360622040,1746906661956,-483.77,9.315e-05,2]
[360622041,1746906661966,-913.03,9.315e-05,2]
[360622042,1746906661975,-794.3,9.315e-05,2]
[360622043,1746906661986,-400.0,9.315e-05,2]
[360622044,1746906661995,-720.62,9.315e-05,2]
[360622045,1746906662005,-400.0,9.315e-05,2]
[360622046,1746906662015,-1418.47,9.315e-05,2]
[360622047,1746906662025,-400.0,9.315e-05,2]
[360622048,1746906662035,-400.0,9.315e-05,2]
[360622049,1746906662044,-480.68,9.315e-05,2]
[360622050,1746906662055,-400.0,9.315e-05,2]
[360622051,1746906662065,-400.0,9.315e-05,2]
[360622052,1746906662075,-1863.48,9.315e-05,2]
[360622053,1746906662084,-619.24,9.315e-05,2]
[360622054,1746906662094,-400.0,9.315e-05,2]
[360622055,1746906662104,-400.0,9.315e-05,2]
[360622056,1746906662114,-1742.97,9.315e-05,2]
[360622057,1746906662123,-499.88,9.315e-05,2]
[360622058,1746906662133,-400.0,9.315e-05,2]
[360622059,1746906662144,-1689.1,9.315e-05,2]
[360622060,1746906662154,-1471.66,9.315e-05,2]
[360622061,1746906662164,-400.0,9.315e-05,2]
[360622062,1746906662174,-400.0,9.315e-05,2]
[360622063,1746906662187,-1375.35,9.315e-05,2]
[360622064,1746906662197,-4432.98,9.315e-05,2]
[360622065,1746906662206,-719.53,9.315e-05,2]
[360622066,1746906662216,-400.0,9.315e-05,2]
[360622067,1746906662225,-1921.61,9.315e-05,2]
[360622068,1746906662235,-400.0,9.315e-05,2]
[360622069,1746906662245,-881.79,9.315e-05,2]
[360622070,1746906662254,-893.91,9.315e-05,2]
[360622071,1746906662263,-3693.92,9.315e-05,2]
[360622072,1746906662273,-676.37,9.315e-05,2]
[360622073,1746906662283,-400.0,9.315e-05,2]
[360622074,1746906662292,-6166.4,9.315e-05,2]
[360622075,1746906662302,-416.85,9.315e-05,2]
[360622076,1746906662311,-1278.01,9.315e-05,2]
[360622077,1746906662321,-400.0,9.315e-05,2]
[360622078,1746906662331,-427.37,9.315e-05,2]
[360622079,1746906662340,-922.84,9.315e-05,2]
[360622080,1746906662349,-400.0,9.315e-05,2]
[360622081,1746906662358,-400.0,9.315e-05,2]
[360622082,1746906662368,-445.82,9.315e-05,2]
[360622083,1746906662378,-1409.07,9.315e-05,2]
[360622084,1746906662387,-526.80348648,9.315e-05,2]
[360622085,1746906662397,-2326.13,9.315e-05,2]
[360622086,1746906662407,-8310.69,9.315e-05,2]
[360622087,1746906662417,-400.0,9.315e-05,2]
[360622088,1746906662427,-400.0,9.315e-05,2]
[360622089,1746906662437,-2015.99,9.315e-05,2]
[360622090,1746906662447,-3912.6,9.315e-05,2]
[360622091,1746906662456,-400.0,9.315e-05,2]
[360622092,1746906662465,-400.0,9.315e-05,2]
[360622093,1746906662474,-2641.95,9.315e-05,2]
[360622094,1746906662485,-2579.44,9.315e-05,2]
[360622095,1746906662495,-557.25,9.315e-05,2]
[360622096,1746906662505,-2704.17,9.315e-05,2]
[360622097,1746906662514,-400.0,9.315e-05,2]
[360622098,1746906662524,-400.0,9.315e-05,2]
[360622099,1746906662534,-858.18656822,9.5e-05,2]
[360622100,1746906662544,-613.79811131,9.547e-05,2]
[360622101,1746906662560,-215.0738,9.583e-05,2]
[360622102,1746906662570,-400.0,9.588e-05,2]
[360622103,1746906662579,-504.97,9.588e-05,2]
[360622104,1746906662588,-400.0,9.588e-05,2]
[360622105,1746906662598,-640.39,9.588e-05,2]
[360622106,1746906662608,-400.0,9.588e-05,2]
[360622107,1746906662618,-539.65,9.588e-05,2]
[360622108,1746906662632,-400.0,9.588e-05,2]
[360622109,1746906662643,-400.0,9.588e-05,2]
[360622110,1746906662652,-699.78,9.588e-05,2]
[360622111,1746906662663,-400.0,9.588e-05,2]
[360622112,1746906662672,-435.97,9.588e-05,2]
[360622113,1746906662681,-400.0,9.588e-05,2]
[360622114,1746906662691,-1746.81,9.588e-05,2]
[360622115,1746906662700,-807.94,9.588e-05,2]
[360622116,1746906662709,-1100.05,9.588e-05,2]
[360622117,1746906662719,-403.69,9.588e-05,2]
[360622118,1746906662728,-692.72,9.588e-05,2]
[360622119,1746906662740,-888.64,9.588e-05,2]
[360622120,1746906662750,-1160.64,9.588e-05,2]
[360622121,1746906662760,-400.0,9.588e-05,2]
[360622122,1746906662770,-400.0,9.588e-05,2]
[360622123,1746906662779,-400.0,9.588e-05,2]
[360622124,1746906662790,-400.0,9.588e-05,2]
[360622125,1746906662799,-400.0,9.588e-05,2]
[360622126,1746906662808,-283.23794958,9.588e-05,2]
[360622127,1746906662818,-523.62,9.588e-05,2]
[360622128,1746906662827,-400.0,9.588e-05,2]
[360622129,1746906662837,-633.73,9.588e-05,2]
[360622130,1746906662847,-400.0,9.588e-05,2]
[360622131,1746906662857,-460.15,9.588e-05,2]
[360622132,1746906662867,-671.11,9.588e-05,2]
[360622133,1746906662877,-557.78,9.588e-05,2]
[360622134,1746906662886,-903.04,9.588e-05,2]
[360622135,1746906662895,-423.53728227,9.588e-05,2]
[360622136,1746906662906,-400.0,9.588e-05,2]
[360622137,1746906662915,-400.0,9.588e-05,2]
[360622138,1746906662924,-738.49,9.588e-05,2]
[360622139,1746906662934,-828.14,9.588e-05,2]
[360622140,1746906662943,-2047.93,9.588e-05,2]
[360622141,1746906662953,-400.0,9.588e-05,2]
[360622142,1746906662962,-974.46,9.588e-05,2]
[360622143,1746906662972,-863.31,9.588e-05,2]
[360622144,1746906662982,-400.0,9.588e-05,2]
[360622145,1746906662992,-629.14,9.588e-05,2]
[360622146,1746906663001,-484.23,9.588e-05,2]
[360622147,1746906663010,-739.18,9.588e-05,2]
[360622148,1746906663020,-922.29,9.588e-05,2]
[360622149,1746906663029,-2351.73,9.588e-05,2]
[360622150,1746906663039,-2022.22,9.588e-05,2]
[360622151,1746906663048,-1891.95,9.588e-05,2]
[360622152,1746906663058,-970.32,9.588e-05,2]
[360622153,1746906663067,-1140.17,9.588e-05,2]
[360622154,1746906663077,-436.7,9.588e-05,2]
[360622155,1746906663086,-1347.82,9.588e-05,2]
[360622156,1746906663095,-793.93,9.588e-05,2]
[360622157,1746906663105,-789.56,9.588e-05,2]
[360622158,1746906663115,-400.0,9.588e-05,2]
[360622159,1746906663124,-400.0,9.588e-05,2]
[360622160,1746906663134,-1926.65,9.588e-05,2]
[360622161,1746906663144,-400.0,9.588e-05,2]
[360622162,1746906663154,-2542.91,9.588e-05,2]
[360622163,1746906663166,-447.46,9.588e-05,2]
[360622164,1746906663177,-705.43,9.588e-05,2]
[360622165,1746906663187,-512.02,9.588e-05,2]
[360622166,1746906663197,-661.8,9.588e-05,2]
[360622167,1746906663207,-457.42,9.589e-05,2]
[360622168,1746906663217,-525.79,9.589e-05,2]
[360622169,1746906663227,-400.0,9.589e-05,2]
[360622170,1746906663238,-400.0,9.589e-05,2]
[360622171,1746906663248,-400.0,9.589e-05,2]
[360622172,1746906663257,-434.68,9.589e-05,2]
[360622173,1746906663267,-219.36291705,9.589e-05,2]
[360622174,1746906663277,-400.0,9.589e-05,2]
[360622175,1746906663287,-400.0,9.589e-05,2]
[360622176,1746906663297,-400.0,9.589e-05,2]
[360622177,1746906663307,-478.83,9.589e-05,2]
[360622178,1746906663316,-832.17,9.589e-05,2]
[360622179,1746906663326,-400.0,9.589e-05,2]
[360622180,1746906663335,-400.0,9.589e-05,2]
[360622181,1746906663345,-400.0,9.589e-05,2]
[360622182,1746906663354,-400.0,9.589e-05,2]
[360622183,1746906663364,-824.8,9.589e-05,2]
[360622184,1746906663373,-400.0,9.589e-05,2]
[360622185,1746906663383,-739.55,9.589e-05,2]
[360622186,1746906663393,-400.0,9.589e-05,2]
[360622187,1746906663404,-1274.07,9.589e-05,2]
[360622188,1746906663413,-400.0,9.589e-05,2]
[360622189,1746906663423,-954.18,9.589e-05,2]
[360622190,1746906663432,-985.97,9.589e-05,2]
[360622191,1746906663442,-400.0,9.589e-05,2]
[360622192,1746906663452,-400.0,9.589e-05,2]
[360622193,1746906663461,-400.0,9.589e-05,2]
[360622194,1746906663470,-453.4,9.589e-05,2]
[360622195,1746906663480,-400.0,9.589e-05,2]
[360622196,1746906663491,-400.0,9.589e-05,2]
[360622197,1746906663500,-400.0,9.589e-05,2]
[360622198,1746906663510,-400.0,9.589e-05,2]
[360622199,1746906663519,-151.0,9.589e-05,2]
[360622200,1746906663529,-446.99,9.589e-05,2]
[360622201,1746906663540,-400.0,9.589e-05,2]
[360622202,1746906663551,-151.0,9.589e-05,2]
[360622203,1746906663560,-722.59,9.589e-05,2]
[360622204,1746906663570,-400.0,9.589e-05,2]
[360622205,1746906663579,-400.0,9.589e-05,2]
[360622206,1746906663590,-400.0,9.589e-05,2]
[360622207,1746906663600,-400.0,9.589e-05,2]
[360622208,1746906663610,-522.88,9.589e-05,2]
[360622209,1746906663620,-427.35,9.589e-05,2]
[360622210,1746906663632,-562.01,9.589e-05,2]
[360622211,1746906663643,-400.0,9.589e-05,2]
[360622212,1746906663652,-1026.92,9.589e-05,2]
[360622213,1746906663662,-400.0,9.589e-05,2]
[360622214,1746906663672,-400.0,9.589e-05,2]
[360622215,1746906663681,-1419.13,9.589e-05,2]
[360622216,1746906663691,-489.84,9.589e-05,2]
[360622217,1746906663701,-953.05,9.589e-05,2]
[360622218,1746906663711,-400.0,9.589e-05,2]
[360622219,1746906663720,-400.0,9.589e-05,2]
[360622220,1746906663730,-695.87,9.589e-05,2]
[360622221,1746906663740,-400.0,9.589e-05,2]
[360622222,1746906663750,-1151.25,9.589e-05,2]
[360622223,1746906663760,-2025.76,9.589e-05,2]
[360622224,1746906663770,-400.0,9.589e-05,2]
[360622225,1746906663779,-400.0,9.589e-05,2]
[360622226,1746906663787,-151.0,9.589e-05,2]
[360622227,1746906663795,-1951.67,9.589e-05,2]
[360622228,1746906663804,-400.0,9.589e-05,2]
[360622229,1746906663812,-781.59,9.589e-05,2]
[360622230,1746906663821,-615.73,9.589e-05,2]
[360622231,1746906663830,-400.0,9.589e-05,2]
[360622232,1746906663839,-446.5825054,9.589e-05,2]
[360622233,1746906663847,-667.76,9.589e-05,2]
[360622234,1746906663855,-400.0,9.589e-05,2]
[360622235,1746906663864,-400.0,9.589e-05,2]
[360622236,1746906663873,-1882.63,9.589e-05,2]
[360622237,1746906663883,-400.0,9.589e-05,2]
[360622238,1746906663893,-400.0,9.589e-05,2]
[360622239,1746906663902,-400.0,9.589e-05,2]
[360622240,1746906664039,-400.0,9.589e-05,2]
[360622241,1746906664064,-494.13,9.589e-05,2]
[360622242,1746906664075,-400.0,9.589e-05,2]
[360622243,1746906664085,-400.0,9.589e-05,2]
[360622244,1746906664096,-400.0,9.589e-05,2]
[360622245,1746906664106,-438.08,9.589e-05,2]
[360622246,1746906664116,-665.28,9.589e-05,2]
[360622247,1746906664126,-643.06,9.589e-05,2]
[360622248,1746906664136,-1142.12,9.589e-05,2]
[360622249,1746906664146,-400.0,9.589e-05,2]
[360622250,1746906664156,-1235.06,9.589e-05,2]
[360622251,1746906664167,-400.0,9.589e-05,2]
[360622252,1746906664177,-400.0,9.589e-05,2]
[360622253,1746906664187,-4110.99,9.589e-05,2]
[360622254,1746906664197,-512.06,9.589e-05,2]
[360622255,1746906664207,-408.04,9.589e-05,2]
[360622256,1746906664216,-387.64554736,9.589e-05,2]
[360622257,1746906664226,-866.6,9.589e-05,2]
[360622258,1746906664236,-1197.32,9.589e-05,2]
[360622259,1746906664246,-4277.51,9.589e-05,2]
[360622260,1746906664255,-400.0,9.589e-05,2]
[360622261,1746906664265,-400.0,9.589e-05,2]
[360622262,1746906664273,-852.33,9.589e-05,2]
[360622263,1746906664282,-400.0,9.589e-05,2]
[360622264,1746906664291,-1309.03,9.589e-05,2]
[360622265,1746906664300,-1077.29,9.589e-05,2]
[360622266,1746906664310,-7785.86,9.589e-05,2]
[360622267,1746906664320,-400.0,9.589e-05,2]
[360622268,1746906664330,-798.74,9.589e-05,2]
[360622269,1746906664339,-400.0,9.589e-05,2]
[360622270,1746906664349,-2347.64,9.589e-05,2]
[360622271,1746906664359,-722.49,9.589e-05,2]
[360622272,1746906664369,-400.0,9.589e-05,2]
[360622273,1746906664379,-400.0,9.589e-05,2]
[360622274,1746906664388,-400.0,9.589e-05,2]
[360622275,1746906664398,-1540.79,9.589e-05,2]
[360622276,1746906664408,-415.52,9.589e-05,2]
[360622277,1746906664418,-1202.77,9.589e-05,2]
[360622278,1746906664427,-8125.42,9.589e-05,2]
[360622279,1746906664436,-455.9,9.589e-05,2]
[360622280,1746906664446,-728.41,9.589e-05,2]
[360622281,1746906664457,-4052.84,9.589e-05,2]
[360622282,1746906664467,-1722.78,9.589e-05,2]
[360622283,1746906664477,-400.0,9.589e-05,2]
[360622284,1746906664487,-400.0,9.589e-05,2]
[360622285,1746906664496,-961.45,9.589e-05,2]
[360622286,1746906664506,-400.0,9.589e-05,2]
[360622287,1746906664517,-400.0,9.589e-05,2]
[360622288,1746906664526,-513.69,9.589e-05,2]
[360622289,1746906664537,-1620.11,9.589e-05,2]
[360622290,1746906664547,-1522.1,9.589e-05,2]
[360622291,1746906664559,-855.77,9.589e-05,2]
[360622292,1746906664568,-3617.99,9.589e-05,2]
[360622293,1746906664577,-400.0,9.589e-05,2]
[360622294,1746906664587,-1039.2,9.589e-05,2]
[360622295,1746906664597,-1521.55,9.589e-05,2]
[360622296,1746906664607,-400.0,9.589e-05,2]
[360622297,1746906664616,-483.77,9.589e-05,2]
[360622298,1746906664626,-913.03,9.589e-05,2]
[360622299,1746906664636,-794.3,9.589e-05,2]
[360622300,1746906664646,-197.69529643,9.589e-05,2]
[360622301,1746906664655,-720.62,9.589e-05,2]
[360622302,1746906664665,-400.0,9.589e-05,2]
[360622303,1746906664674,-1418.47,9.589e-05,2]
[360622304,1746906664683,-400.0,9.589e-05,2]
[360622305,1746906664693,-400.0,9.589e-05,2]
[360622306,1746906664702,-480.68,9.589e-05,2]
[360622307,1746906664711,-400.0,9.589e-05,2]
[360622308,1746906664722,-400.0,9.589e-05,2]
[360622309,1746906664732,-1863.48,9.589e-05,2]
[360622310,1746906664745,-619.24,9.589e-05,2]
[360622311,1746906664754,-400.0,9.589e-05,2]
[360622312,1746906664764,-400.0,9.589e-05,2]
[360622313,1746906664774,-1742.97,9.589e-05,2]
[360622314,1746906664784,-499.88,9.589e-05,2]
[360622315,1746906664793,-400.0,9.589e-05,2]
[360622316,1746906664803,-1689.1,9.589e-05,2]
[360622317,1746906664812,-1471.66,9.589e-05,2]
[360622318,1746906664822,-400.0,9.589e-05,2]
[360622319,1746906664831,-400.0,9.589e-05,2]
[360622320,1746906664841,-1375.35,9.589e-05,2]
[360622321,1746906664851,-4432.98,9.589e-05,2]
[360622322,1746906664860,-719.53,9.589e-05,2]
[360622323,1746906664870,-400.0,9.589e-05,2]
[360622324,1746906664879,-1921.61,9.589e-05,2]
[360622325,1746906664888,-400.0,9.589e-05,2]
[360622326,1746906664898,-881.79,9.589e-05,2]
[360622327,1746906664907,-893.91,9.589e-05,2]
[360622328,1746906664916,-3693.92,9.589e-05,2]
[360622329,1746906664925,-676.37,9.589e-05,2]
[360622330,1746906664934,-400.0,9.589e-05,2]
[360622331,1746906664944,-6166.4,9.589e-05,2]
[360622332,1746906664953,-416.85,9.589e-05,2]
[360622333,1746906664963,-1278.01,9.589e-05,2]
[360622334,1746906664972,-400.0,9.589e-05,2]
[360622335,1746906664981,-427.37,9.589e-05,2]
[360622336,1746906664993,-922.84,9.589e-05,2]
[360622337,1746906665003,-400.0,9.589e-05,2]
[360622338,1746906665012,-400.0,9.589e-05,2]
[360622339,1746906665022,-445.82,9.589e-05,2]
[360622340,1746906665032,-1409.07,9.589e-05,2]
[360622341,1746906665051,-2326.13,9.589e-05,2]
[360622342,1746906665062,-8310.69,9.589e-05,2]
[360622343,1746906665072,-400.0,9.589e-05,2]
[360622344,1746906665082,-196.24263158,9.589e-05,2]
[360622345,1746906665092,-2015.99,9.589e-05,2]
[360622346,1746906665102,-3912.6,9.589e-05,2]
[360622347,1746906665111,-400.0,9.589e-05,2]
[360622348,1746906665121,-400.0,9.589e-05,2]
[360622349,1746906665131,-2641.95,9.589e-05,2]
[360622350,1746906665141,-2579.44,9.589e-05,2]
[360622351,1746906665151,-557.25,9.589e-05,2]
[360622352,1746906665161,-2704.17,9.589e-05,2]
[360622353,1746906665170,-400.0,9.589e-05,2]
[360622354,1746906665180,-513.46,9.589e-05,2]
[360622355,1746906665189,-613.79811131,9.652e-05,2]
[360622356,1746906665199,-500.0,9.726e-05,2]
[360622357,1746906665209,-400.0,9.862e-05,2]
[360622358,1746906665219,-504.97,9.862e-05,2]
[360622359,1746906665228,-400.0,9.862e-05,2]
[360622360,1746906665239,-640.39,9.862e-05,2]
[360622361,1746906665249,-400.0,9.862e-05,2]
[360622362,1746906665259,-539.65,9.862e-05,2]
[360622363,1746906665268,-400.0,9.862e-05,2]
[360622364,1746906665278,-400.0,9.862e-05,2]
[360622365,1746906665299,-699.78,9.862e-05,2]
[360622366,1746906665318,-400.0,9.862e-05,2]
[360622367,1746906665336,-435.97,9.862e-05,2]
[360622368,1746906665348,-400.0,9.862e-05,2]
[360622369,1746906665366,-1746.81,9.862e-05,2]
[360622370,1746906665382,-807.94,9.862e-05,2]
[360622371,1746906665399,-1100.05,9.862e-05,2]
[360622372,1746906665416,-403.69,9.862e-05,2]
[360622373,1746906665433,-692.72,9.862e-05,2]
[360622374,1746906665449,-888.64,9.862e-05,2]
[360622375,1746906665466,-1160.64,9.862e-05,2]
[360622376,1746906665485,-400.0,9.862e-05,2]
[360622377,1746906665498,-400.0,9.862e-05,2]
[360622378,1746906665510,-400.0,9.862e-05,2]
[360622379,1746906665524,-400.0,9.862e-05,2]
[360622380,1746906665540,-400.0,9.862e-05,2]
[360622381,1746906665559,-523.62,9.862e-05,2]
[360622382,1746906665576,-400.0,9.862e-05,2]
[360622383,1746906665593,-633.73,9.862e-05,2]
[360622384,1746906665607,-400.0,9.862e-05,2]
[360622385,1746906665618,-460.15,9.862e-05,2]
[360622386,1746906665633,-671.11,9.862e-05,2]
[360622387,1746906665650,-557.78,9.862e-05,2]
[360622388,1746906665662,-903.04,9.862e-05,2]
[360622389,1746906665676,-400.0,9.862e-05,2]
[360622390,1746906665690,-400.0,9.862e-05,2]
[360622391,1746906665706,-738.49,9.862e-05,2]
[360622392,1746906665721,-828.14,9.862e-05,2]
[360622393,1746906665735,-2047.93,9.862e-05,2]
[360622394,1746906665751,-400.0,9.862e-05,2]
[360622395,1746906665765,-974.46,9.862e-05,2]
[360622396,1746906665779,-863.31,9.862e-05,2]
[360622397,1746906665793,-400.0,9.862e-05,2]
[360622398,1746906665805,-629.14,9.862e-05,2]
[360622399,1746906665818,-484.23,9.862e-05,2]
[360622400,1746906665830,-739.18,9.862e-05,2]
[360622401,1746906665843,-922.29,9.862e-05,2]
[360622402,1746906665857,-2351.73,9.862e-05,2]
[360622403,1746906665869,-2022.22,9.862e-05,2]
[360622404,1746906665882,-1891.95,9.862e-05,2]
[360622405,1746906665896,-970.32,9.862e-05,2]
[360622406,1746906665910,-1140.17,9.862e-05,2]
[360622407,1746906665923,-436.7,9.862e-05,2]
[360622408,1746906665937,-1347.82,9.862e-05,2]
[360622409,1746906665951,-793.93,9.862e-05,2]
[360622410,1746906665965,-789.56,9.862e-05,2]
[360622411,1746906665978,-400.0,9.862e-05,2]
[360622412,1746906665991,-400.0,9.862e-05,2]
[360622413,1746906666003,-1926.65,9.862e-05,2]
[360622414,1746906666016,-549.76344879,9.862e-05,2]
[360622415,1746906666028,-2542.91,9.862e-05,2]
[360622416,1746906666041,-447.46,9.862e-05,2]
[360622417,1746906666053,-705.43,9.862e-05,2]
[360622418,1746906666067,-512.02,9.862e-05,2]
[360622419,1746906666079,-661.8,9.862e-05,2]
[360622420,1746906666092,-457.42,9.863e-05,2]
[360622421,1746906666105,-525.79,9.863e-05,2]
[360622422,1746906666117,-400.0,9.863e-05,2]
[360622423,1746906666130,-400.0,9.863e-05,2]
[360622424,1746906666142,-400.0,9.863e-05,2]
[360622425,1746906666154,-434.68,9.863e-05,2]
[360622426,1746906666167,-400.0,9.863e-05,2]
[360622427,1746906666179,-388.21990351,9.863e-05,2]
[360622428,1746906666192,-400.0,9.863e-05,2]
[360622429,1746906666204,-478.83,9.863e-05,2]
[360622430,1746906666216,-832.17,9.863e-05,2]
[360622431,1746906666229,-400.0,9.863e-05,2]
[360622432,1746906666241,-400.0,9.863e-05,2]
[360622433,1746906666254,-400.0,9.863e-05,2]
[360622434,1746906666267,-400.0,9.863e-05,2]
[360622435,1746906666279,-824.8,9.863e-05,2]
[360622436,1746906666291,-400.0,9.863e-05,2]
[360622437,1746906666303,-739.55,9.863e-05,2]
[360622438,1746906666318,-400.0,9.863e-05,2]
[360622439,1746906666331,-1274.07,9.863e-05,2]
[360622440,1746906666344,-400.0,9.863e-05,2]
[360622441,1746906666356,-954.18,9.863e-05,2]
[360622442,1746906666369,-985.97,9.863e-05,2]
[360622443,1746906666381,-400.0,9.863e-05,2]
[360622444,1746906666395,-400.0,9.863e-05,2]
[360622445,1746906666408,-400.0,9.863e-05,2]
[360622446,1746906666421,-453.4,9.863e-05,2]
[360622447,1746906666433,-400.0,9.863e-05,2]
[360622448,1746906666446,-400.0,9.863e-05,2]
[360622449,1746906666458,-400.0,9.863e-05,2]
[360622450,1746906666470,-400.0,9.863e-05,2]
[360622451,1746906666483,-151.0,9.863e-05,2]
[360622452,1746906666495,-446.99,9.863e-05,2]
[360622453,1746906666508,-400.0,9.863e-05,2]
[360622454,1746906666521,-151.0,9.863e-05,2]
[360622455,1746906666533,-722.59,9.863e-05,2]
[360622456,1746906666546,-400.0,9.863e-05,2]
[360622457,1746906666561,-400.0,9.863e-05,2]
[360622458,1746906666573,-400.0,9.863e-05,2]
[360622459,1746906666586,-400.0,9.863e-05,2]
[360622460,1746906666599,-522.88,9.863e-05,2]
[360622461,1746906666612,-427.35,9.863e-05,2]
[360622462,1746906666624,-562.01,9.863e-05,2]
[360622463,1746906666637,-400.0,9.863e-05,2]
[360622464,1746906666650,-1026.92,9.863e-05,2]
[360622465,1746906666661,-400.0,9.863e-05,2]
[360622466,1746906666675,-400.0,9.863e-05,2]
[360622467,1746906666687,-1419.13,9.863e-05,2]
[360622468,1746906666700,-489.84,9.863e-05,2]
[360622469,1746906666712,-953.05,9.863e-05,2]
[360622470,1746906666724,-400.0,9.863e-05,2]
[360622471,1746906666738,-423.72,9.863e-05,2]
[360622472,1746906666751,-695.87,9.863e-05,2]
[360622473,1746906666762,-400.0,9.863e-05,2]
[360622474,1746906666775,-1151.25,9.863e-05,2]
[360622475,1746906666788,-2025.76,9.863e-05,2]
[360622476,1746906666800,-372.7995406,9.863e-05,2]
[360622477,1746906666812,-400.0,9.863e-05,2]
[360622478,1746906666824,-1951.67,9.863e-05,2]
[360622479,1746906666836,-151.0,9.863e-05,2]
[360622480,1746906666849,-400.0,9.863e-05,2]
[360622481,1746906666861,-781.59,9.863e-05,2]
[360622482,1746906666874,-615.73,9.863e-05,2]
[360622483,1746906666886,-400.0,9.863e-05,2]
[360622484,1746906666899,-667.76,9.863e-05,2]
[360622485,1746906666910,-400.0,9.863e-05,2]
[360622486,1746906666923,-400.0,9.863e-05,2]
[360622487,1746906666936,-1882.63,9.863e-05,2]